[Event "GrandPrix_30.05"]
[Site "Chess.com"]
[Date "2020.05.30"]
[Round "3"]
[White "fm_magua"]
[Black "haddinibilbaoo"]
[Result "1-0"]
[WhiteElo "1883"]
[BlackElo "2107"]
[TimeControl "600+2"]
[EndTime "9:14:40 PDT"]
[Termination "fm_magua won by resignation"]

1. e4 {[%clk 0:10:01.9]} 1... c5 {[%clk 0:10:00.8]} 2. Nf3 {[%clk 0:10:02.7]}
2... Nc6 {[%clk 0:10:01.7]} 3. d4 {[%clk 0:10:02.9]} 3... cxd4 {[%clk 0:10:03]}
4. Nxd4 {[%clk 0:10:04.6]} 4... e5 {[%clk 0:10:04.3]} 5. Nb5 {[%clk 0:10:05.5]}
5... d6 {[%clk 0:10:05.8]} 6. N1c3 {[%clk 0:10:06.7]} 6... a6 {[%clk 0:10:07]}
7. Na3 {[%clk 0:10:07.2]} 7... b5 {[%clk 0:10:08.6]} 8. Nd5 {[%clk 0:10:08.1]}
8... Nge7 {[%clk 0:10:09.9]} 9. Bg5 {[%clk 0:10:08.5]} 9... h6 {[%clk
0:10:08.9]} 10. Bh4 {[%clk 0:10:09.7]} 10... Qa5+ {[%clk 0:09:47.2]} 11. c3
{[%clk 0:10:09.8]} 11... Nxd5 {[%clk 0:09:47.6]} 12. exd5 {[%clk 0:10:05.7]}
12... Ne7 {[%clk 0:09:44.5]} 13. Be2 {[%clk 0:09:59.6]} 13... Nf5 {[%clk
0:09:39.7]} 14. Bg3 {[%clk 0:10:00.2]} 14... Be7 {[%clk 0:09:37.2]} 15. O-O
{[%clk 0:09:57.9]} 15... O-O {[%clk 0:09:37.8]} 16. Nc2 {[%clk 0:09:57.7]} 16...
Qb6 {[%clk 0:09:29.8]} 17. a4 {[%clk 0:09:55.5]} 17... Nxg3 {[%clk 0:09:11.8]}
18. hxg3 {[%clk 0:09:55.9]} 18... Bd7 {[%clk 0:09:01.5]} 19. axb5 {[%clk
0:09:53.7]} 19... axb5 {[%clk 0:09:03.4]} 20. Nb4 {[%clk 0:09:52.6]} 20... f5
{[%clk 0:08:56.8]} 21. Qd3 {[%clk 0:09:46]} 21... e4 {[%clk 0:08:38.2]} 22. Qe3
{[%clk 0:09:46.9]} 22... Qxe3 {[%clk 0:08:38.4]} 23. fxe3 {[%clk 0:09:47.7]}
23... Ra4 {[%clk 0:07:32]} 24. Nc6 {[%clk 0:09:42.5]} 24... Bg5 {[%clk
0:06:46.7]} 25. Kf2 {[%clk 0:09:28]} 25... Rfa8 {[%clk 0:06:40.6]} 26. Rxa4
{[%clk 0:09:18.6]} 26... bxa4 {[%clk 0:06:42.5]} 27. Ra1 {[%clk 0:09:19]} 27...
Bf6 {[%clk 0:06:34.3]} 28. Bb5 {[%clk 0:09:11.8]} 28... a3 {[%clk 0:06:08.8]}
29. Rxa3 {[%clk 0:09:12.5]} 29... Rxa3 {[%clk 0:06:09.2]} 30. bxa3 {[%clk
0:09:14.4]} 30... Bxc6 {[%clk 0:06:02.3]} 31. dxc6 {[%clk 0:09:14.3]} 31... Bd8
{[%clk 0:06:03.3]} 32. Bc4+ {[%clk 0:09:13]} 32... Kf8 {[%clk 0:06:03.4]} 33.
Be6 {[%clk 0:09:11.6]} 33... g6 {[%clk 0:06:04.3]} 34. g4 {[%clk 0:09:12.7]}
34... fxg4 {[%clk 0:05:56.5]} 35. Bxg4 {[%clk 0:09:03.8]} 35... Ke7 {[%clk
0:05:57.2]} 36. c4 {[%clk 0:08:58.2]} 36... Kf6 {[%clk 0:05:45]} 37. Bd7 {[%clk
0:08:58.8]} 37... Ke5 {[%clk 0:05:44.9]} 38. Be8 {[%clk 0:08:59.8]} 38... g5
{[%clk 0:05:44.7]} 39. Bf7 {[%clk 0:09:00.6]} 39... Kf6 {[%clk 0:05:42.4]} 40.
Bd5 {[%clk 0:09:01.7]} 40... h5 {[%clk 0:05:40.6]} 41. Bxe4 {[%clk 0:09:00.9]}
41... g4 {[%clk 0:05:11.3]} 42. g3 {[%clk 0:08:48.6]} 42... Ke5 {[%clk
0:05:09.5]} 43. Bg6 {[%clk 0:08:44.8]} 43... h4 {[%clk 0:05:09.4]} 44. gxh4
{[%clk 0:08:45.9]} 44... Bxh4+ {[%clk 0:05:10.5]} 45. Kg2 {[%clk 0:08:43.8]}
45... Bd8 {[%clk 0:05:10]} 46. Kg3 {[%clk 0:08:43]} 46... d5 {[%clk 0:05:11.3]}
47. cxd5 {[%clk 0:08:39.7]} 47... Kxd5 {[%clk 0:05:13.2]} 48. Kxg4 {[%clk
0:08:29.9]} 48... Kxc6 {[%clk 0:05:13.7]} 49. Kf5 {[%clk 0:08:28]} 49... Kb5
{[%clk 0:04:42.5]} 50. Be8+ {[%clk 0:08:27.7]} 50... Kc5 {[%clk 0:04:39.6]} 51.
e4 {[%clk 0:08:26.6]} 51... Kd6 {[%clk 0:03:48.6]} 52. e5+ {[%clk 0:08:26.8]}
52... Ke7 {[%clk 0:03:49.9]} 53. Bb5 {[%clk 0:08:27.4]} 53... Ba5 {[%clk
0:03:50.9]} 54. Ke4 {[%clk 0:08:26.7]} 54... Bc3 {[%clk 0:03:51.7]} 55. Kd5
{[%clk 0:08:25.8]} 55... Ba5 {[%clk 0:03:50.7]} 56. a4 {[%clk 0:08:25.2]} 56...
Bc7 {[%clk 0:03:51.3]} 57. e6 {[%clk 0:08:21.4]} 57... Ba5 {[%clk 0:03:50.3]}
58. Bc4 {[%clk 0:08:19.8]} 58... Be1 {[%clk 0:03:28]} 59. Kc6 {[%clk 0:08:20.1]}
59... Kd8 {[%clk 0:03:28.3]} 60. Kb5 {[%clk 0:08:08.1]} 60... Kc7 {[%clk
0:03:26.2]} 61. a5 {[%clk 0:08:04.2]} 61... Bh4 {[%clk 0:03:26.5]} 62. a6 {[%clk
0:07:54]} 62... Kb8 {[%clk 0:03:27.2]} 63. Kc6 {[%clk 0:07:53.3]} 63... Ka7
{[%clk 0:03:27.9]} 64. Kd7 {[%clk 0:07:52.5]} 1-0

[Event "GrandPrix_30.05"]
[Site "Chess.com"]
[Date "2020.05.30"]
[Round "3"]
[White "MirMan90"]
[Black "Spartakus1975"]
[Result "0-1"]
[WhiteElo "2179"]
[BlackElo "2552"]
[TimeControl "600+2"]
[EndTime "9:15:23 PDT"]
[Termination "Spartakus1975 won by resignation"]

1. e4 {[%clk 0:10:01.9]} 1... e6 {[%clk 0:09:56.3]} 2. d4 {[%clk 0:10:02.3]}
2... d5 {[%clk 0:09:56.7]} 3. Nd2 {[%clk 0:10:03.6]} 3... c5 {[%clk 0:09:56.8]}
4. exd5 {[%clk 0:10:00.2]} 4... exd5 {[%clk 0:09:57.7]} 5. Ngf3 {[%clk
0:09:56.9]} 5... Nc6 {[%clk 0:09:57.5]} 6. Bb5 {[%clk 0:09:57.4]} 6... cxd4
{[%clk 0:09:57.6]} 7. O-O {[%clk 0:09:56]} 7... Bd6 {[%clk 0:09:56.9]} 8. Nb3
{[%clk 0:09:53.4]} 8... Ne7 {[%clk 0:09:56]} 9. Nbxd4 {[%clk 0:09:49.1]} 9...
O-O {[%clk 0:09:54.7]} 10. Bd3 {[%clk 0:09:37.9]} 10... Ng6 {[%clk 0:09:31.1]}
11. c3 {[%clk 0:09:29.1]} 11... a6 {[%clk 0:09:28.1]} 12. Re1 {[%clk 0:09:21.8]}
12... Qc7 {[%clk 0:09:19.7]} 13. h3 {[%clk 0:09:21]} 13... Bd7 {[%clk
0:09:13.9]} 14. Bd2 {[%clk 0:09:06.1]} 14... Rad8 {[%clk 0:09:10.3]} 15. Qc2
{[%clk 0:08:53]} 15... Rfe8 {[%clk 0:08:52.3]} 16. Rad1 {[%clk 0:08:39]} 16...
Bc8 {[%clk 0:08:44.3]} 17. Bg5 {[%clk 0:08:35]} 17... Rxe1+ {[%clk 0:08:29.7]}
18. Rxe1 {[%clk 0:08:34.5]} 18... Rf8 {[%clk 0:08:31.1]} 19. Qb3 {[%clk
0:08:18]} 19... Nge5 {[%clk 0:08:14.8]} 20. Nxe5 {[%clk 0:07:30.3]} 20... Nxe5
{[%clk 0:08:13.2]} 21. Bb1 {[%clk 0:07:21.5]} 21... Nc4 {[%clk 0:08:10.8]} 22.
Qc2 {[%clk 0:07:20.7]} 22... g6 {[%clk 0:08:08.8]} 23. Qe2 {[%clk 0:07:15.2]}
23... Bh2+ {[%clk 0:07:35.3]} 24. Kh1 {[%clk 0:07:01.8]} 24... Bf4 {[%clk
0:07:35.9]} 25. Bf6 {[%clk 0:06:24.9]} 25... Qb6 {[%clk 0:07:31.5]} 26. Be7
{[%clk 0:06:03]} 26... Re8 {[%clk 0:07:30.9]} 27. b3 {[%clk 0:05:43.2]} 27...
Bd6 {[%clk 0:06:05.3]} 28. bxc4 {[%clk 0:05:02]} 28... Rxe7 {[%clk 0:06:01.5]}
29. Qf1 {[%clk 0:04:56.5]} 29... dxc4 {[%clk 0:05:55.6]} 30. Rxe7 {[%clk
0:04:52.4]} 30... Bxe7 {[%clk 0:05:55.3]} 31. Be4 {[%clk 0:04:53.6]} 31... Qc5
{[%clk 0:05:31.4]} 32. a4 {[%clk 0:04:47.8]} 32... Bf6 {[%clk 0:05:23.9]} 33.
Qd1 {[%clk 0:04:41.2]} 33... Kg7 {[%clk 0:05:11.1]} 34. Qd2 {[%clk 0:04:32.3]}
34... b5 {[%clk 0:04:53.7]} 35. axb5 {[%clk 0:04:31.3]} 35... axb5 {[%clk
0:04:54.3]} 36. Nc6 {[%clk 0:04:31.9]} 36... Bb7 {[%clk 0:04:41]} 37. Qd7 {[%clk
0:04:30.5]} 37... Bxc6 {[%clk 0:04:30.7]} 38. Bxc6 {[%clk 0:04:31.6]} 38... Qxf2
{[%clk 0:04:27.7]} 0-1

[Event "GrandPrix_30.05"]
[Site "Chess.com"]
[Date "2020.05.30"]
[Round "3"]
[White "Bestromano"]
[Black "Novoselski"]
[Result "0-1"]
[WhiteElo "2091"]
[BlackElo "2308"]
[TimeControl "600+2"]
[EndTime "9:15:24 PDT"]
[Termination "Novoselski won by resignation"]

1. e4 {[%clk 0:10:01.9]} 1... c5 {[%clk 0:09:59.7]} 2. Nf3 {[%clk 0:10:02.7]}
2... g6 {[%clk 0:10:00.6]} 3. g3 {[%clk 0:10:02.3]} 3... Bg7 {[%clk 0:10:00.1]}
4. Bg2 {[%clk 0:10:01.8]} 4... Nc6 {[%clk 0:10:01]} 5. O-O {[%clk 0:10:00.7]}
5... e5 {[%clk 0:09:58.3]} 6. Nc3 {[%clk 0:10:01.3]} 6... Nge7 {[%clk
0:09:57.5]} 7. d3 {[%clk 0:10:02.6]} 7... d6 {[%clk 0:09:58.1]} 8. Nd2 {[%clk
0:09:57.6]} 8... h5 {[%clk 0:09:48.4]} 9. h3 {[%clk 0:09:49.6]} 9... h4 {[%clk
0:09:36.6]} 10. g4 {[%clk 0:09:45.8]} 10... g5 {[%clk 0:09:31.9]} 11. Nc4 {[%clk
0:09:44.2]} 11... Ng6 {[%clk 0:09:30.8]} 12. Nd5 {[%clk 0:09:42.6]} 12... Be6
{[%clk 0:09:25.3]} 13. Nce3 {[%clk 0:09:07.3]} 13... Nf4 {[%clk 0:09:18.8]} 14.
Nf5 {[%clk 0:09:00.4]} 14... O-O {[%clk 0:09:05.8]} 15. c3 {[%clk 0:08:46.4]}
15... Bxd5 {[%clk 0:08:58.5]} 16. exd5 {[%clk 0:08:45.8]} 16... Ne7 {[%clk
0:08:58.2]} 17. Nxe7+ {[%clk 0:08:35.6]} 17... Qxe7 {[%clk 0:08:57.7]} 18. Bxf4
{[%clk 0:08:36.9]} 18... exf4 {[%clk 0:08:54.9]} 19. Re1 {[%clk 0:08:36.8]}
19... Qd7 {[%clk 0:08:52.3]} 20. Be4 {[%clk 0:08:36.4]} 20... Rae8 {[%clk
0:08:34.5]} 21. Bf5 {[%clk 0:07:23.1]} 21... Qb5 {[%clk 0:08:27.5]} 22. Qb3
{[%clk 0:06:59.7]} 22... Qa6 {[%clk 0:08:24.2]} 23. a4 {[%clk 0:06:45.1]} 23...
Re5 {[%clk 0:07:52.5]} 24. Rxe5 {[%clk 0:06:37.4]} 24... Bxe5 {[%clk 0:07:49.4]}
25. Qb5 {[%clk 0:06:38.8]} 25... Qb6 {[%clk 0:07:31.2]} 26. Qxb6 {[%clk
0:06:33.3]} 26... axb6 {[%clk 0:07:29.6]} 27. Kf1 {[%clk 0:06:34.6]} 27... Ra8
{[%clk 0:07:14.6]} 28. Bd7 {[%clk 0:06:31.2]} 28... Kf8 {[%clk 0:07:12.6]} 29.
Ke2 {[%clk 0:06:25.9]} 29... Ke7 {[%clk 0:07:12.2]} 30. Bb5 {[%clk 0:06:24.5]}
30... f5 {[%clk 0:07:11.7]} 31. gxf5 {[%clk 0:06:21.6]} 31... Kf6 {[%clk
0:07:11.3]} 32. Bd7 {[%clk 0:06:22.2]} 32... Rd8 {[%clk 0:07:09.9]} 33. Be6
{[%clk 0:06:21.2]} 33... Ra8 {[%clk 0:07:10.3]} 34. Ra3 {[%clk 0:05:50.3]} 34...
g4 {[%clk 0:05:58.2]} 35. hxg4 {[%clk 0:05:39.9]} 35... f3+ {[%clk 0:05:57.8]}
36. Kxf3 {[%clk 0:05:39.2]} 36... h3 {[%clk 0:05:58.5]} 37. Ke4 {[%clk
0:03:50.9]} 37... h2 {[%clk 0:05:38.2]} 38. Ra1 {[%clk 0:03:47.4]} 38... Rxa4+
{[%clk 0:05:37.6]} 39. Rxa4 {[%clk 0:03:30.1]} 39... h1=Q+ {[%clk 0:05:37]} 40.
Ke3 {[%clk 0:03:28.6]} 40... Qe1+ {[%clk 0:05:33.9]} 0-1

[Event "GrandPrix_30.05"]
[Site "Chess.com"]
[Date "2020.05.30"]
[Round "3"]
[White "anesar92"]
[Black "AnotherGrumpy"]
[Result "1-0"]
[WhiteElo "2430"]
[BlackElo "2025"]
[TimeControl "600+2"]
[EndTime "9:15:26 PDT"]
[Termination "anesar92 won by resignation"]

1. e4 {[%clk 0:10:01.9]} 1... e5 {[%clk 0:09:47.3]} 2. Nc3 {[%clk 0:10:00.7]}
2... Nf6 {[%clk 0:09:43.2]} 3. Bc4 {[%clk 0:09:59.7]} 3... c6 {[%clk 0:09:43.5]}
4. Nf3 {[%clk 0:09:49.2]} 4... Bd6 {[%clk 0:09:38.7]} 5. d4 {[%clk 0:09:15.9]}
5... Qe7 {[%clk 0:09:30.2]} 6. O-O {[%clk 0:09:01.2]} 6... O-O {[%clk
0:09:17.3]} 7. Nh4 {[%clk 0:08:51]} 7... exd4 {[%clk 0:09:07.1]} 8. Nf5 {[%clk
0:07:31.1]} 8... Qe5 {[%clk 0:08:55]} 9. Nxd6 {[%clk 0:05:51.5]} 9... Qxd6
{[%clk 0:08:47.7]} 10. Be3 {[%clk 0:05:52.4]} 10... c5 {[%clk 0:08:06.1]} 11.
Bg5 {[%clk 0:05:51.1]} 11... Nc6 {[%clk 0:07:43.1]} 12. f4 {[%clk 0:05:50.3]}
12... Na5 {[%clk 0:07:18.7]} 13. e5 {[%clk 0:05:24.8]} 13... Qc6 {[%clk
0:07:01]} 14. Bxf6 {[%clk 0:05:17.5]} 14... gxf6 {[%clk 0:06:38]} 15. Nd5 {[%clk
0:05:13.3]} 15... Nxc4 {[%clk 0:06:32.1]} 16. Nxf6+ {[%clk 0:04:39.3]} 16...
Qxf6 {[%clk 0:06:24.9]} 17. exf6 {[%clk 0:04:41.2]} 17... d6 {[%clk 0:06:19.1]}
18. Rf3 {[%clk 0:03:43.1]} 18... Ne3 {[%clk 0:06:10.2]} 19. Rg3+ {[%clk
0:03:26.9]} 19... Kh8 {[%clk 0:06:10.9]} 20. Qh5 {[%clk 0:03:26.9]} 20... Be6
{[%clk 0:05:48.1]} 21. Rg7 {[%clk 0:03:05]} 21... Bf5 {[%clk 0:05:44.6]} 22. g4
{[%clk 0:02:16.3]} 22... Bg6 {[%clk 0:05:39.9]} 23. Qh6 {[%clk 0:02:15.9]} 23...
Rg8 {[%clk 0:05:36.6]} 24. f5 {[%clk 0:02:16.9]} 24... Nxg4 {[%clk 0:05:33.5]}
25. fxg6 {[%clk 0:02:17.5]} 1-0

[Event "GrandPrix_30.05"]
[Site "Chess.com"]
[Date "2020.05.30"]
[Round "3"]
[White "zuagroasta"]
[Black "bratkoo"]
[Result "1-0"]
[WhiteElo "2140"]
[BlackElo "2143"]
[TimeControl "600+2"]
[EndTime "9:15:32 PDT"]
[Termination "zuagroasta won by checkmate"]

1. d4 {[%clk 0:10:01.9]} 1... e6 {[%clk 0:10:00.3]} 2. c4 {[%clk 0:09:56.1]}
2... d5 {[%clk 0:10:01.1]} 3. Nc3 {[%clk 0:09:56.3]} 3... c6 {[%clk 0:09:59.2]}
4. e3 {[%clk 0:09:51.3]} 4... Bd6 {[%clk 0:09:56.9]} 5. Nf3 {[%clk 0:09:41.8]}
5... f5 {[%clk 0:09:57.4]} 6. Qc2 {[%clk 0:08:50.8]} 6... Nf6 {[%clk 0:09:51.2]}
7. h3 {[%clk 0:08:28.2]} 7... Qe7 {[%clk 0:09:45.5]} 8. Bd3 {[%clk 0:08:06.2]}
8... O-O {[%clk 0:09:44.5]} 9. g4 {[%clk 0:07:58.1]} 9... Ne4 {[%clk 0:09:40.9]}
10. gxf5 {[%clk 0:07:58.3]} 10... exf5 {[%clk 0:09:26.9]} 11. cxd5 {[%clk
0:07:56.4]} 11... Nxc3 {[%clk 0:09:25.1]} 12. bxc3 {[%clk 0:07:52.2]} 12... cxd5
{[%clk 0:09:25.4]} 13. c4 {[%clk 0:07:26.8]} 13... f4 {[%clk 0:09:18]} 14. Bxh7+
{[%clk 0:06:50.5]} 14... Kh8 {[%clk 0:09:17.6]} 15. Ne5 {[%clk 0:06:49.9]} 15...
Bxe5 {[%clk 0:09:17.5]} 16. dxe5 {[%clk 0:06:49.1]} 16... fxe3 {[%clk
0:09:17.3]} 17. Bxe3 {[%clk 0:06:42.5]} 17... Qxe5 {[%clk 0:09:17.1]} 18. Rd1
{[%clk 0:06:37.9]} 18... dxc4 {[%clk 0:09:16.9]} 19. Rd4 {[%clk 0:06:25.5]}
19... Qa5+ {[%clk 0:08:57.4]} 20. Kf1 {[%clk 0:06:21.3]} 20... Qh5 {[%clk
0:08:57.6]} 21. Bg6 {[%clk 0:06:13.8]} 21... Bf5 {[%clk 0:08:45.6]} 22. Qxf5
{[%clk 0:05:54.9]} 22... Qxf5 {[%clk 0:08:40.5]} 23. Bxf5 {[%clk 0:05:48]} 23...
Rxf5 {[%clk 0:08:41.5]} 24. Rd8+ {[%clk 0:05:47.1]} 24... Kh7 {[%clk 0:08:42.7]}
25. Ke2 {[%clk 0:05:33.2]} 25... b5 {[%clk 0:08:36.7]} 26. Rg1 {[%clk
0:05:05.2]} 26... a5 {[%clk 0:08:33.4]} 27. Bd4 {[%clk 0:04:54.2]} 27... Rf7
{[%clk 0:08:33.1]} 28. Be5 {[%clk 0:04:47.4]} 28... Nc6 {[%clk 0:07:58.7]} 29.
Rxa8 {[%clk 0:04:46.8]} 29... Nxe5 {[%clk 0:07:59.5]} 30. Rxa5 {[%clk
0:04:45.4]} 30... Nd3 {[%clk 0:08:00.4]} 31. Rxb5 {[%clk 0:04:35]} 31... Re7+
{[%clk 0:07:43.7]} 32. Kd2 {[%clk 0:04:17.3]} 32... Nxf2 {[%clk 0:07:41.8]} 33.
a4 {[%clk 0:04:08.5]} 33... Ne4+ {[%clk 0:07:39.9]} 34. Kc2 {[%clk 0:04:07.4]}
34... Rf7 {[%clk 0:07:39]} 35. Rg2 {[%clk 0:04:00.6]} 35... Rf3 {[%clk
0:07:31.2]} 36. a5 {[%clk 0:03:57.9]} 36... Ra3 {[%clk 0:07:31.6]} 37. Kb2
{[%clk 0:03:57.2]} 37... Rxh3 {[%clk 0:07:27.8]} 38. a6 {[%clk 0:03:50.3]} 38...
Nd6 {[%clk 0:07:26]} 39. Rb6 {[%clk 0:03:45.3]} 39... c3+ {[%clk 0:07:26.9]} 40.
Kc2 {[%clk 0:03:42.5]} 40... Nf5 {[%clk 0:07:27.9]} 41. a7 {[%clk 0:03:25.6]}
41... Nd4+ {[%clk 0:07:28.1]} 42. Kb1 {[%clk 0:03:17.5]} 42... Rh1+ {[%clk
0:07:14]} 43. Ka2 {[%clk 0:03:15.2]} 43... c2 {[%clk 0:07:15.2]} 44. a8=Q {[%clk
0:02:58.6]} 44... Ra1+ {[%clk 0:07:04.9]} 45. Kxa1 {[%clk 0:02:58.3]} 45...
c1=Q+ {[%clk 0:07:06]} 46. Ka2 {[%clk 0:02:59]} 46... Qc4+ {[%clk 0:07:06.4]}
47. Kb2 {[%clk 0:02:59.5]} 47... Nf3 {[%clk 0:06:39.6]} 48. Rh6+ {[%clk
0:02:49.1]} 48... gxh6 {[%clk 0:06:34.7]} 49. Qb7+ {[%clk 0:02:48.9]} 49... Kh8
{[%clk 0:06:34.5]} 50. Qg7# {[%clk 0:02:49.1]} 1-0

[Event "GrandPrix_30.05"]
[Site "Chess.com"]
[Date "2020.05.30"]
[Round "3"]
[White "caspiwins"]
[Black "SpasKozhuharov"]
[Result "0-1"]
[WhiteElo "2258"]
[BlackElo "2195"]
[TimeControl "600+2"]
[EndTime "9:15:57 PDT"]
[Termination "SpasKozhuharov won by resignation"]

1. e4 {[%clk 0:10:01.9]} 1... c6 {[%clk 0:09:57.7]} 2. d4 {[%clk 0:10:02.1]}
2... d5 {[%clk 0:09:58.1]} 3. e5 {[%clk 0:10:03.3]} 3... c5 {[%clk 0:09:58.5]}
4. c4 {[%clk 0:10:03.9]} 4... cxd4 {[%clk 0:09:56.4]} 5. Nf3 {[%clk 0:10:04.3]}
5... dxc4 {[%clk 0:09:53.4]} 6. Bxc4 {[%clk 0:09:59.2]} 6... Nc6 {[%clk
0:09:52.2]} 7. O-O {[%clk 0:09:59.1]} 7... e6 {[%clk 0:09:42.6]} 8. Re1 {[%clk
0:09:59.5]} 8... Bc5 {[%clk 0:09:34.7]} 9. a3 {[%clk 0:09:58.6]} 9... Nge7
{[%clk 0:09:33]} 10. b4 {[%clk 0:09:59.4]} 10... Bb6 {[%clk 0:09:33.9]} 11. Bb2
{[%clk 0:09:59.8]} 11... Ng6 {[%clk 0:09:34.4]} 12. Nbd2 {[%clk 0:09:57.9]}
12... O-O {[%clk 0:09:23.2]} 13. Bd3 {[%clk 0:09:49.7]} 13... Bc7 {[%clk
0:09:03.4]} 14. Nc4 {[%clk 0:09:28.5]} 14... b5 {[%clk 0:08:43.3]} 15. Nd6
{[%clk 0:09:29.2]} 15... Ncxe5 {[%clk 0:08:33.4]} 16. Nxc8 {[%clk 0:08:42.6]}
16... Nxd3 {[%clk 0:08:31.9]} 17. Qxd3 {[%clk 0:08:43.4]} 17... Rxc8 {[%clk
0:08:30.6]} 18. Qxb5 {[%clk 0:08:44.4]} 18... e5 {[%clk 0:08:29.4]} 19. Rad1
{[%clk 0:08:37.3]} 19... Qd6 {[%clk 0:07:47.7]} 20. Ng5 {[%clk 0:08:19.9]} 20...
Rfd8 {[%clk 0:07:22.3]} 21. Ne4 {[%clk 0:07:58.8]} 21... Qd5 {[%clk 0:07:13.4]}
22. Qa6 {[%clk 0:07:43.6]} 22... Bb6 {[%clk 0:06:48.3]} 23. Bc1 {[%clk
0:07:23.5]} 23... f5 {[%clk 0:06:44]} 24. Ng3 {[%clk 0:07:23.8]} 24... e4 {[%clk
0:06:41.6]} 25. Nh5 {[%clk 0:06:58]} 25... d3 {[%clk 0:06:34.5]} 26. Nf4 {[%clk
0:05:55]} 26... Nxf4 {[%clk 0:06:22.1]} 27. Bxf4 {[%clk 0:05:56.9]} 27... Rc2
{[%clk 0:06:18.7]} 28. Be3 {[%clk 0:05:57.8]} 28... d2 {[%clk 0:06:01.8]} 29.
Rf1 {[%clk 0:05:51.1]} 29... Qd3 {[%clk 0:05:49.9]} 30. Qxd3 {[%clk 0:04:59.7]}
30... Rxd3 {[%clk 0:05:51.8]} 31. Bxb6 {[%clk 0:05:00.2]} 31... axb6 {[%clk
0:05:52.2]} 32. Ra1 {[%clk 0:05:01.8]} 32... Rdc3 {[%clk 0:05:33.6]} 33. Rad1
{[%clk 0:04:33.3]} 33... f4 {[%clk 0:05:33.3]} 34. g3 {[%clk 0:02:58.9]} 34...
e3 {[%clk 0:05:31.4]} 35. fxe3 {[%clk 0:02:33]} 35... fxe3 {[%clk 0:05:31.7]}
0-1

[Event "GrandPrix_30.05"]
[Site "Chess.com"]
[Date "2020.05.30"]
[Round "3"]
[White "SavelievAlexei"]
[Black "DenLaz"]
[Result "1/2-1/2"]
[WhiteElo "2211"]
[BlackElo "2562"]
[TimeControl "600+2"]
[EndTime "9:16:00 PDT"]
[Termination "Game drawn by agreement"]

1. d4 {[%clk 0:10:01.9]} 1... d5 {[%clk 0:10:00]} 2. Nc3 {[%clk 0:10:02.1]} 2...
Nf6 {[%clk 0:10:00.1]} 3. Bf4 {[%clk 0:10:02.4]} 3... a6 {[%clk 0:10:00.7]} 4.
e3 {[%clk 0:10:03.6]} 4... b5 {[%clk 0:09:58.7]} 5. h3 {[%clk 0:09:51.8]} 5...
Bb7 {[%clk 0:09:55.3]} 6. g4 {[%clk 0:09:52.1]} 6... e6 {[%clk 0:09:52.1]} 7.
Nf3 {[%clk 0:09:49.3]} 7... c5 {[%clk 0:09:50]} 8. Bg2 {[%clk 0:09:48]} 8... Nc6
{[%clk 0:09:44.5]} 9. a3 {[%clk 0:09:36.2]} 9... Bd6 {[%clk 0:09:35.5]} 10. O-O
{[%clk 0:09:28.5]} 10... O-O {[%clk 0:09:18.4]} 11. Bxd6 {[%clk 0:08:05.2]}
11... Qxd6 {[%clk 0:09:17.7]} 12. Re1 {[%clk 0:08:07.1]} 12... Rad8 {[%clk
0:08:54.8]} 13. Qe2 {[%clk 0:07:55.3]} 13... e5 {[%clk 0:08:49.4]} 14. dxe5
{[%clk 0:07:51.6]} 14... Nxe5 {[%clk 0:08:51.3]} 15. Nxe5 {[%clk 0:07:48.2]}
15... Qxe5 {[%clk 0:08:50.7]} 16. Rad1 {[%clk 0:07:49.7]} 16... Rfe8 {[%clk
0:08:46.6]} 17. f4 {[%clk 0:07:31.7]} 17... Qe6 {[%clk 0:08:35.1]} 18. g5 {[%clk
0:07:31.8]} 18... Ne4 {[%clk 0:08:35]} 19. Nxe4 {[%clk 0:06:13.4]} 19... dxe4
{[%clk 0:08:36.9]} 20. Rxd8 {[%clk 0:06:13.6]} 20... Rxd8 {[%clk 0:08:35.4]} 21.
Rd1 {[%clk 0:06:15.5]} 21... Rd5 {[%clk 0:08:31]} 22. Bf1 {[%clk 0:06:03.6]}
22... h6 {[%clk 0:08:26.9]} 23. Rxd5 {[%clk 0:05:42.8]} 23... Bxd5 {[%clk
0:08:25.8]} 24. Qh5 {[%clk 0:05:12.3]} 24... hxg5 {[%clk 0:08:12.1]} 25. Qxg5
{[%clk 0:05:11.6]} 25... f6 {[%clk 0:07:55.7]} 26. Qh5 {[%clk 0:04:59.1]} 26...
f5 {[%clk 0:07:49.2]} 27. Qg5 {[%clk 0:04:50.9]} 27... Bc4 {[%clk 0:07:47.9]}
28. Bxc4 {[%clk 0:03:56.9]} 28... bxc4 {[%clk 0:07:49.8]} 29. Qd8+ {[%clk
0:03:48.3]} 29... Kh7 {[%clk 0:07:49.6]} 30. Kf2 {[%clk 0:01:45.9]} 30... Qh6
{[%clk 0:07:33.9]} 31. Kg3 {[%clk 0:01:45.5]} 31... Qh5 {[%clk 0:07:33.8]} 32.
Qh4 {[%clk 0:01:46.5]} 32... Qxh4+ {[%clk 0:07:03.3]} 33. Kxh4 {[%clk
0:01:48.4]} 33... Kg6 {[%clk 0:07:04.6]} 34. Kg3 {[%clk 0:01:47]} 34... Kh5
{[%clk 0:06:55.2]} 35. h4 {[%clk 0:01:28.1]} 35... a5 {[%clk 0:06:54.6]} 36. c3
{[%clk 0:01:25.5]} 36... Kg6 {[%clk 0:06:51.1]} 37. a4 {[%clk 0:01:19.3]}
1/2-1/2

[Event "GrandPrix_30.05"]
[Site "Chess.com"]
[Date "2020.05.30"]
[Round "3"]
[White "Rikikits"]
[Black "BashirliN"]
[Result "1-0"]
[WhiteElo "2642"]
[BlackElo "2190"]
[TimeControl "600+2"]
[EndTime "9:16:39 PDT"]
[Termination "Rikikits won by resignation"]

1. d3 {[%clk 0:09:36.5]} 1... c5 {[%clk 0:09:28]} 2. g3 {[%clk 0:09:38.4]} 2...
Nc6 {[%clk 0:09:25.7]} 3. Bg2 {[%clk 0:09:40.3]} 3... g6 {[%clk 0:09:26.4]} 4.
c4 {[%clk 0:09:39.8]} 4... Bg7 {[%clk 0:09:27.4]} 5. Nc3 {[%clk 0:09:36.1]} 5...
e6 {[%clk 0:09:28.6]} 6. Bxc6 {[%clk 0:09:35.6]} 6... dxc6 {[%clk 0:09:05.2]} 7.
Qd2 {[%clk 0:09:33.3]} 7... Ne7 {[%clk 0:09:05.4]} 8. b3 {[%clk 0:09:32.3]} 8...
O-O {[%clk 0:09:05.6]} 9. Bb2 {[%clk 0:09:32.9]} 9... e5 {[%clk 0:08:57.3]} 10.
h4 {[%clk 0:09:32.1]} 10... h5 {[%clk 0:08:33.5]} 11. Nf3 {[%clk 0:09:24.9]}
11... Bg4 {[%clk 0:08:03.1]} 12. Ne4 {[%clk 0:09:22.2]} 12... b6 {[%clk
0:07:59.1]} 13. Nxe5 {[%clk 0:08:55.8]} 13... Bf5 {[%clk 0:07:24.2]} 14. Nf3
{[%clk 0:07:34]} 14... f6 {[%clk 0:07:20.5]} 15. Qf4 {[%clk 0:07:15.7]} 15... a5
{[%clk 0:07:12]} 16. a4 {[%clk 0:07:14.8]} 16... Qd7 {[%clk 0:07:07.3]} 17. O-O
{[%clk 0:06:54.2]} 17... Rad8 {[%clk 0:06:04.3]} 18. Rfe1 {[%clk 0:06:48.9]}
18... Qe6 {[%clk 0:05:44.9]} 19. Ned2 {[%clk 0:05:36.8]} 19... Kh7 {[%clk
0:05:11.9]} 20. e4 {[%clk 0:05:16]} 20... Bg4 {[%clk 0:04:21.8]} 21. e5 {[%clk
0:05:16.2]} 21... g5 {[%clk 0:02:34.3]} 22. exf6 {[%clk 0:04:37.7]} 22... gxf4
{[%clk 0:02:26.2]} 23. Ng5+ {[%clk 0:04:36.6]} 23... Kg8 {[%clk 0:02:11.9]} 24.
Nxe6 {[%clk 0:04:36.3]} 1-0